{"text_format":"3","workbook":"xlsx","n_sheets":7,"sheets":["Info","Sammandrag","Boendeförälderns familj","Underhållsskyldiges familj","Specifikation av boendekostnade","Grunduppgifter","Ändringar"],"not_rendered":{"defined_names":19,"comments":3},"read":"whole","date_system":"1900"}

{"sheet":"Info","index":0,"n_rows":19,"n_cols":4,"rows_kept":19}
[]
[]
[null,"ELIAS"]
[]
[null,"Börja"]
[]
[null,"Beräkning av underhåll enligt JM:s direktiv"]
[]
[]
[null,"Version 2.0  ","2007-11-27","-"]
[]
[null,"Uppgjord av offentliga rättsbiträdet Martin Melin"]
[null,"Epost förnamn.efternamn (at) oikeus.fi"]
[]
[null,"I räknaren finns kommentarer infogade på vissa punkter. Kommentarerna ses som små röda trianglar i respektive cell. Texten i kommentaren blir synlig när man för muspekaren över en sådan cell."]
[]
[null,"Den här räknaren får fritt användas på eget ansvar. Ifall den ändras bör den ändrade versionen på samma sätt vara fri att använda. Jusitieministeriet bär inget ansvar för räknarens uppdateringar eller innehåll. Alla kommentar sänds till Martin Melin."]
[]
[null,"Konverterad till Excel november 2017, versionen publicerad januari 2019"]

{"sheet":"Sammandrag","index":1,"n_rows":46,"n_cols":6,"rows_kept":46,"merged":[[47,1,51,5]]}
["Sammandrag – Underhållsberäkning",{"$nulls":4},"Bilaga 1."]
[]
[null,"Underhållsförmåga",null,"Underhållsskyldig",null,"Boendeförälder"]
[{"$nulls":3},"Spec.",null,"Spec."]
[null,null,"Inkomster (inkl. förhöjning av barnbidrag)",{"$f":"'Underhållsskyldiges familj'!E10+'Underhållsskyldiges familj'!E13","v":{"v":0,"d":"0.00"}},null,{"$f":"'Boendeförälderns familj'!E10+'Boendeförälderns familj'!E13","v":{"v":0,"d":"0.00"}}]
[null,null,"Förskottsinnehållning",{"$f":"'Underhållsskyldiges familj'!E11","v":{"v":0,"d":"0.00"}},null,{"$f":"'Boendeförälderns familj'!E11","v":{"v":0,"d":"0.00"}}]
[null,null,"Nettoinkomster",{"$f":"D5-D6","v":{"v":0,"d":"0.00"}},null,{"$f":"F5-F6","v":{"v":0,"d":"0.00"}}]
[]
[null,null,"Boendekostnader",{"$f":"'Underhållsskyldiges familj'!E37","v":{"v":400,"d":"400.00"}},null,{"$f":"'Boendeförälderns familj'!E49","v":{"v":400,"d":"400.00"}}]
[null,null,"Antalet barn i familjen",null,null,{"$f":"'Boendeförälderns familj'!D27","v":0}]
[null,null,"Underhållstagarnas andel",null,null,{"$f":"IF(F9=0,0,IF(F10>0,VLOOKUP(F10,Asumis_osuudet,3)*F9*'Boendeförälderns familj'!D23,0))","v":{"v":0,"d":"0.00"}}]
[null,null,"Förälderns andel",{"$f":"D9","v":{"v":400,"d":"400.00"}},null,{"$f":"F9-F11","v":{"v":400,"d":"400.00"}}]
[null,null,"Egna levnadskostnader",{"$f":"IF('Underhållsskyldiges familj'!E5=\"\",Grunduppgifter!E13,Grunduppgifter!E14*2*'Underhållsskyldiges familj'!E7)","v":{"v":614,"d":"614.00"}},null,{"$f":"IF('Boendeförälderns familj'!E5=\"\",Grunduppgifter!E13,Grunduppgifter!E14*2*'Boendeförälderns familj'!E7)","v":{"v":614,"d":"614.00"}}]
[null,null,"Annat underhållsansvar",{"$f":"'Underhållsskyldiges familj'!E21+'Underhållsskyldiges familj'!E22","v":{"v":0,"d":"0.00"}},null,{"$f":"'Boendeförälderns familj'!E24+'Boendeförälderns familj'!E25+'Boendeförälderns familj'!E28-'Boendeförälderns familj'!E20","v":{"v":0,"d":"0.00"}}]
[null,null,"Andra kostnader",{"$f":"'Underhållsskyldiges familj'!E39","v":{"v":0,"d":"0.00"}},null,{"$f":"'Boendeförälderns familj'!E51","v":{"v":0,"d":"0.00"}}]
[null,null,"Kostnaderna sammanlagt",{"$f":"SUM(D12:D15)","v":{"v":1014,"d":"1,014.00"}},null,{"$f":"SUM(F12:F15)","v":{"v":1014,"d":"1,014.00"}}]
[]
[null,null,"Grund för underhållsförmågan",{"$f":"D7-D16","v":{"v":-1014,"d":"-1,014.00"}},null,{"$f":"F7-F16","v":{"v":-1014,"d":"-1,014.00"}}]
[{"$nulls":3},{"$f":"IF(D18<0,0,D18)","v":{"v":0,"d":"0.00"}},null,{"$f":"IF(F18<0,0,F18)","v":{"v":0,"d":"0.00"}}]
[null,null,"Relativ grund",{"$f":"IF(D19=0,0,D19/(D19+F19))","v":{"v":0,"d":"0.00%"}},null,{"$f":"1-D20","v":{"v":1,"d":"100.00%"}}]
[]
[null,"Antalet underhållstagare och deras nettokostnader",{"$nulls":3},{"$f":"'Boendeförälderns familj'!D23","v":0}]
[]
[null,null,"Allmänna kostnader enligt tabell",null,null,{"$f":"'Boendeförälderns familj'!E23","v":{"v":0,"d":"0.00"}}]
[null,null,"Särskilda kostnader",null,null,{"$f":"'Boendeförälderns familj'!E31","v":{"v":0,"d":"0.00"}}]
[null,null,"Andel av boendekostnaderna",null,null,{"$f":"IF(F11<=0,0,F11)","v":{"v":0,"d":"0.00"}}]
[null,null,"Barnbidrag",null,null,{"$f":"IF('Boendeförälderns familj'!E18=\"\",0,'Boendeförälderns familj'!E18)","v":{"v":0,"d":"0.00"}}]
[null,null,"Inkomster som skall beaktas",null,null,{"$f":"'Boendeförälderns familj'!E19","v":{"v":0,"d":"0.00"}}]
[null,null,"Kostnaderna sammanlagt",null,null,{"$f":"SUM(F24:F26)-(F27+F28)","v":{"v":0,"d":"0.00"}}]
[]
[null,"Fördelning av underhållsskyldigheten"]
[]
[null,null,"Andel",{"$f":"D20","v":{"v":0,"d":"0.00%"}},null,{"$f":"F20","v":{"v":1,"d":"100.00%"}}]
[null,null,"Andel i euro",{"$f":"IF(D18<0,0,IF(F29*D33>=D18,D18,F29*D33))","v":{"v":0,"d":"0.00"}},null,{"$f":"F29-D34","v":{"v":0,"d":"0.00"}}]
[null,null,"Umgängesavdrag sammanlagt",{"$f":"IF(D34=0,0,IF(F29=0,0,IF(D18+F18<F29,(D18+F18)/F29*'Underhållsskyldiges familj'!E29,'Underhållsskyldiges familj'!E29)))","v":{"v":0,"d":"0.00"}}]
[null,null,"Underhållsbidrag sammanlagt",{"$f":"IF((D34-D35)<=0,0,D34-D35)","v":{"v":0,"d":"0.00"}}]
[null,null,"Per barn i medeltal",{"$f":"IF(D36<=0,0,D36/F22)","v":{"v":0,"d":"0.00"}}]
[]
[null,"Grunder för skälighetsbedömningen"]
[]
[null,null,"Grund för underhållsförmågan",{"$f":"D19","v":{"v":0,"d":"0.00"}},null,{"$f":"F19","v":{"v":0,"d":"0.00"}}]
[null,null,"Icke beaktade boendekostnader",{"$f":"IF('Underhållsskyldiges familj'!E32>'Underhållsskyldiges familj'!E36,('Underhållsskyldiges familj'!E32-'Underhållsskyldiges familj'!E36)*'Underhållsskyldiges familj'!E7,0)","v":{"v":0,"d":"0.00"}},null,{"$f":"IF('Boendeförälderns familj'!E44>'Boendeförälderns familj'!E48,('Boendeförälderns familj'!E44-'Boendeförälderns familj'!E48)*'Boendeförälderns familj'!E7,0)","v":{"v":0,"d":"0.00"}}]
[null,null,"Underhållsskyldighet",{"$f":"IF(D36<0,0,D36)","v":{"v":0,"d":"0.00"}},null,{"$f":"IF(F34<0,0,F34)","v":{"v":0,"d":"0.00"}}]
[null,null,"Differens",{"$f":"D41-D43-D42","v":{"v":0,"d":"0.00"}},null,{"$f":"F41-F43-F42","v":{"v":0,"d":"0.00"}}]
[]
[null,"Anmärkningar"]

{"sheet":"Boendeförälderns familj","index":2,"n_rows":54,"n_cols":9,"rows_kept":54}
["Boendeförälderns familj – Underhållsberäkning",{"$nulls":3},"Sammandrag",{"$nulls":3},"Bilaga 2."]
[]
[null,"Grunduppgifter"]
[null,null,"Ensamförsörjare (Ja/Nej)",null,"Ja"]
[null,null,"Andel av gemensamma kostnader (antagen)",null,{"$f":"IF(LEFT(E4,1)=\"n\",0.5,\"\")","v":""}]
[null,null,"Avvikande andel %",null,"   "]
[{"$nulls":4},{"$f":"IF(E5<>\"\",IF(ISNUMBER(E6),E6,E5),1)","v":{"v":1,"d":"100.00%"}}]
[]
[null,"Förälderns inkomster"]
[null,null,"Bruttoinkomster",null,{"v":0,"d":"0.00"}]
[null,null,"Förskottsinnehållning"]
[null,null,"Antal barn som erhåller barnbidrag"]
[null,null,"Barnbidragsförhöjningar totalt",null,{"$f":"IF(E4=\"Ja\",IF(ISNUMBER(E12),E12*Grunduppgifter!E43,\"0,00\"),\"0,00\")","v":"0,00"}]
[null,null,"Inkomster totalt",null,{"$f":"E10-E11+E13","v":{"v":0,"d":"0.00"}}]
[]
[null,"Barnens inkomster"]
[null,null,"Underhållstagare som erhåller barnbidrag"]
[null,null,"Underhållstagarnas andel av barnbidraget",null,{"$f":"IF(ISNUMBER(E17),IF(ISNUMBER(E12),IF(E12>5,Grunduppgifter!G48/6*E17,VLOOKUP(E12,Lapsilisat,5)/E12*E17),\"\"),\"\")","v":""}]
[null,null,"Av underhållstagarnas inkomster beaktas"]
[null,null,"Underhållsbidrag/stöd för övriga barn",null,{"v":0,"d":"0.00"}]
[]
[null,"Barnen i hushållet – antal, åldrar och allmänna kostnader",{"$nulls":4},7,13,18]
[null,null,"Underhållstagare",{"$f":"SUM(G23:I23)","v":0},{"$f":"IF(G23>0,VLOOKUP(G$22,Lasten_kustannukset,3)*G23,0)+IF(H23>0,VLOOKUP(H$22,Lasten_kustannukset,3)*H23,0)+IF(I23>0,VLOOKUP(I$22,Lasten_kustannukset,3)*I23,0)","v":{"v":0,"d":"0.00"}}]
[null,null,"Gemensamma med ny make – andel",{"$f":"SUM(G24:I24)","v":0},{"$f":"(IF(G24>0,VLOOKUP(G$22,Lasten_kustannukset,3)*G24,0)+IF(H24>0,VLOOKUP(H$22,Lasten_kustannukset,3)*H24,0)+IF(I24>0,VLOOKUP(I$22,Lasten_kustannukset,3)*I24,0))*E7","v":{"v":0,"d":"0.00"}}]
[null,null,"Boendeförälderns övriga barn",{"$f":"SUM(G25:I25)","v":0},{"$f":"IF(G25>0,VLOOKUP(G$22,Lasten_kustannukset,3)*G25,0)+IF(H25>0,VLOOKUP(H$22,Lasten_kustannukset,3)*H25,0)+IF(I25>0,VLOOKUP(I$22,Lasten_kustannukset,3)*I25,0)","v":{"v":0,"d":"0.00"}}]
[null,null,"Övriga personer t.ex. makens barn"," "]
[null,null,"Sammanlagt",{"$f":"SUM(D23:D26)","v":0},{"$f":"SUM(E23:E26)","v":{"v":0,"d":"0.00"}}]
[null,null,"Underhållsbidrag - utom familjen boende barn",null,{"v":0,"d":"0.00"}]
[]
[null,"Underhållstagarnas särskilda kostnader – specifikation"]
[null,null,"Särskilda kostnader sammanlagt",null,{"$f":"SUM(E34:E41)","v":{"v":0,"d":"0.00"}}]
[]
[null,null,"Förklaring och belopp"]
{"$rows_empty":9}
[null,"Boendekostnader och andra kostnader"]
[null,null,"Verkliga boendekostnader enligt specif.",">>>",{"$f":"'Specifikation av boendekostnade'!E4","v":{"v":0,"d":"0.00"}}]
[null,null,"Beräknad hyreskostnad",null,{"$f":"IF(E5=\"\",((D27)*Grunduppgifter!E40+Grunduppgifter!E39)*Grunduppgifter!E38,((D27+1)*Grunduppgifter!E40+Grunduppgifter!E39)*Grunduppgifter!E38)","v":{"v":400,"d":"400.00"}}]
[null,null,"Antagna boendekostnader",null,{"$f":"IF(E44=0,E45,IF(E44>E45,E45,E44))","v":{"v":400,"d":"400.00"}}]
[null,null,"Avvikande boendekostnader"]
[{"$nulls":4},{"$f":"IF(ISNUMBER(E47),E47,E46)","v":{"v":400,"d":"400.00"}}]
[null,null,"Boendeförälderns andel",null,{"$f":"E48*E7","v":{"v":400,"d":"400.00"}}]
[]
[null,null,"Boendeförälderns andra kostnader"]
[]
[{"$nulls":4},"Ja"]
[{"$nulls":4},"Nej"]

{"sheet":"Underhållsskyldiges familj","index":3,"n_rows":43,"n_cols":9,"rows_kept":43}
["Underhållsskyldiges familj – Beräkning av underhåll",{"$nulls":3},"Sammandrag",{"$nulls":3},"Bilaga 3."]
[]
[null,"Grunduppgifter"]
[null,null,"Ensamförsörjare (Ja/Nej)",null,"Ja"]
[null,null,"Antagen andel av gemensamma kostnader",null,{"$f":"IF(LEFT(E4,1)=\"n\",0.5,\"\")","v":""}]
[null,null,"Avvikande andel %",null,"   "]
[{"$nulls":4},{"$f":"IF(E5<>\"\",IF(ISNUMBER(E6),E6,E5),1)","v":{"v":1,"d":"100.00%"}}]
[]
[null,"Underhållsskyldiges inkomster"]
[null,null,"Bruttoinkomster",null,{"v":0,"d":"0.00"}]
[null,null,"Förskottsinnehållning"]
[null,null,"Antal barn som erhåller barnbidrag"]
[null,null,"Barnbidragsförhöjningar totalt",null,{"$f":"IF(E4=\"Ja\",IF(ISNUMBER(E12),E12*Grunduppgifter!E43,\"0,00\"),\"0,00\")","v":"0,00"}]
[null,null,"Inkomster totalt",null,{"$f":"E10-E11+E13","v":{"v":0,"d":"0.00"}}]
[]
[null,"Barnen i hushållet – antal, åldrar och allmänna kostnader",{"$nulls":4},7,13,18]
[null,null,"Gemensamma med ny make – andel",{"$f":"SUM(G17:I17)","v":0},{"$f":"(IF(G17>0,VLOOKUP(G$16,Lasten_kustannukset,3)*G17,0)+IF(H17>0,VLOOKUP(H$16,Lasten_kustannukset,3)*H17,0)+IF(I17>0,VLOOKUP(I$16,Lasten_kustannukset,3)*I17,0))*E7","v":{"v":0,"d":"0.00"}}]
[null,null,"Underhållsskyldiges övriga barn",{"$f":"SUM(G18:I18)","v":0},{"$f":"IF(G18>0,VLOOKUP(G$16,Lasten_kustannukset,3)*G18,0)+IF(H18>0,VLOOKUP(H$16,Lasten_kustannukset,3)*H18,0)+IF(I18>0,VLOOKUP(I$16,Lasten_kustannukset,3)*I18,0)","v":{"v":0,"d":"0.00"}}]
[null,null,"Underhållsskyldiges övriga barns inkomster"]
[null,null,"Övriga personer t.ex. makens barn"]
[null,null,"Sammanlagt",{"$f":"SUM(D17:D20)","v":0},{"$f":"SUM(E17:E18)-E19","v":{"v":0,"d":"0.00"}}]
[null,null,"Underhållsbidrag - utom familjen boende barn",null,{"v":0,"d":"0.00"}]
[]
[null,null,"Umgängesdygn (9,12,15)",null,{"$f":"IF(ISNUMBER(D24),IF(D24>8,SUM(E25:E27),0),0)","v":{"v":0,"d":"0.00"}}]
[{"$nulls":4},{"$f":"IF('Boendeförälderns familj'!G23>0,VLOOKUP(D$24,Lasten_luonapito,3)*'Boendeförälderns familj'!G23,0)","v":{"v":0,"d":"0.00"}}]
[{"$nulls":4},{"$f":"IF('Boendeförälderns familj'!H23>0,VLOOKUP(D$24,Lasten_luonapito,4)*'Boendeförälderns familj'!H23,0)","v":{"v":0,"d":"0.00"}}]
[{"$nulls":4},{"$f":"IF('Boendeförälderns familj'!I23>0,VLOOKUP(D$24,Lasten_luonapito,5)*'Boendeförälderns familj'!I23,0)","v":{"v":0,"d":"0.00"}}]
[null,null,"Avvikande umgängesavdrag"]
[{"$nulls":4},{"$f":"IF(ISNUMBER(E28),E28,E24)","v":{"v":0,"d":"0.00"}}]
[]
[null,"Boendekostnader och andra kostnader"]
[null,null,"Verkliga boendekostnader enligt specif.",">>>",{"$f":"'Specifikation av boendekostnade'!E27","v":{"v":0,"d":"0.00"}}]
[null,null,"Beräknad hyreskostnad",null,{"$f":"IF(E5=\"\",((D21)*Grunduppgifter!E40+Grunduppgifter!E39)*Grunduppgifter!E38,((D21+1)*Grunduppgifter!E40+Grunduppgifter!E39)*Grunduppgifter!E38)","v":{"v":400,"d":"400.00"}}]
[null,null,"Antagna boendekostnader",null,{"$f":"IF(E32=0,E33,IF(E32>E33,E33,E32))","v":{"v":400,"d":"400.00"}}]
[null,null,"Avvikande boendekostnader"]
[{"$nulls":4},{"$f":"IF(ISNUMBER(E35),E35,E34)","v":{"v":400,"d":"400.00"}}]
[null,null,"Underhållsskyldiges andel",null,{"$f":"E36*E7","v":{"v":400,"d":"400.00"}}]
[]
[null,null,"Underhållsskyldiges andra kostnader"]
[]
[]
[{"$nulls":4},"Ja"]
[{"$nulls":4},"Nej"]

{"sheet":"Specifikation av boendekostnade","index":4,"n_rows":31,"n_cols":8,"rows_kept":31}
["Specifikation av boendekostnaderna – Beräkning av underhåll",{"$nulls":6},"Bilaga 4."]
[]
[null,"Boendeförälderns boendekostnader"]
[null,"<<<","Boendekostnaderna sammanlagt",null,{"$f":"SUM(E9:E24)-E6","v":{"v":0,"d":"0.00"}}]
[]
[null,null,"Bostadsbidrag"]
[]
[null,null,"Förklaring",null,"Belopp"]
{"$rows_empty":17}
[null,"Underhållsskyldiges boendekostnader"]
[null,"<<<","Boendekostnaderna sammanlagt",null,{"$f":"SUM(E32:E47)-E29","v":{"v":0,"d":"0.00"}}]
[]
[null,null,"Bostadsbidrag"]
[]
[null,null,"Förklaring",null,"Belopp"]

{"sheet":"Grunduppgifter","index":5,"n_rows":48,"n_cols":9,"rows_kept":48}
["Grunduppgifter – Beräkning av underhåll"]
[]
[null,"Barnens allmänna kostnader"]
[]
[null,null,"Ålder",null,"Belopp"]
[null,null,7,null,305]
[null,null,13,null,356]
[null,null,18,null,480]
[]
[null,"Föräldrarnas allmänna kostnader"]
[]
[null,null,"Civilstånd",null,"Belopp"]
[null,null,"Ensam",null,614]
[null,null,"Gift/sambo",null,517]
[]
[null,"Umgängesavdrag"]
[{"$nulls":7},"Belopp"]
[{"$nulls":4},"Dygn",null,null,"Åldersfördelning"]
[{"$nulls":6},7,13,18]
[{"$nulls":4},7,1,0,0,0]
[{"$nulls":4},9,2,{"v":32,"d":"32.00"},{"v":34.5,"d":"34.50"},{"v":38,"d":"38.00"}]
[{"$nulls":4},12,3,{"v":43,"d":"43.00"},{"v":46.5,"d":"46.50"},{"v":53,"d":"53.00"}]
[{"$nulls":4},15,4,{"v":56.5,"d":"56.50"},{"v":60.5,"d":"60.50"},{"v":66,"d":"66.00"}]
[]
[null,"Boendekostnadernas fördelningsgrunder"]
[]
[null,null,"Antal",null,"Andel",null,"Andel sammanlagt"]
[null,null,1,null,{"v":0.23,"d":"23.00%"},null,{"$f":"C28*E28","v":{"v":0.23,"d":"23.00%"}}]
[null,null,2,null,{"v":0.19,"d":"19.00%"},null,{"v":0.38,"d":"38.00%"}]
[null,null,3,null,{"v":0.16,"d":"16.00%"},null,{"v":0.48,"d":"48.00%"}]
[null,null,4,null,{"v":0.14,"d":"14.00%"},null,{"v":0.56,"d":"56.00%"}]
[null,null,5,null,{"v":0.12,"d":"12.00%"},null,{"v":0.6,"d":"60.00%"}]
[null,null,6,null,{"v":0.11,"d":"11.00%"},null,{"v":0.66,"d":"66.00%"}]
[null,null,7,null,{"v":0.1,"d":"10.00%"},null,{"v":0.7000000000000001,"d":"70.00%"}]
[]
[null,"Grunder för beräknad hyra"]
[]
[null,null,"Euro/m2",null,10]
[null,null,"M2 pers 1",null,40]
[null,null,"M2 pers n",null,20]
[]
[null,"Barnbidrag"]
[null,null,"Förhöjningar",null,{"v":63.3,"d":"63.30"}]
[null,null,1,null,94.88,null,{"$f":"E44","v":94.88}]
[null,null,2,null,104.84,null,{"$f":"G44+E45","v":199.72}]
[null,null,3,null,133.79,null,{"$f":"G45+E46","v":333.51}]
[null,null,4,null,163.24,null,{"$f":"G46+E47","v":496.75}]
[null,null,5,null,182.69,null,{"$f":"G47+E48","v":679.44}]

{"sheet":"Ändringar","index":6,"n_rows":27,"n_cols":3,"rows_kept":27}
[null,"Ändringshistorik"]
[null,"En helt ny version – grundar sig på version 1.0 (endast på finska) men med många strukturella förändringar","2007-09-01"]
[null,"Bland annat korrigerat beräkning av andelen av boendekostnaderna (procent i enlighet med alla barn och andel i enligt antalet som får underhåll), korrigerat umgängesavdraget i sammandraget, lagt till ett formel som beaktar ifall det beräknade underhållsbidraget överstiger förmågan att betala underhåll. Lagt till ett fält för bostadsbidrag på sidan för specifikation av boendekostnader. Publicerad.","2008-01-16"]
[null,"Utveckat räknarenså att Sammandragssidan fått ett fält för anmärkningar och motsvarande.  Ifall man gör olika versioner i samma ärende kan man hålla dessa i sär genom att anteckningar i detta fält. Elias räknar nu också ut barnbidragen enligt en tabell i Grunduppgifterna. Observera direktiven i cellkommentarerna.","2008-01-28"]
[null,"Korrgerat skyddsfel gällande boendekostnaderna. Nu kan man ange bostadsbidrag som det är tänkt.","2008-02-06"]
[null,"Korrigerad så att underhållsskyldighet mellan makarna fungar korrekt även gällande deras levnadskostnader. De är nu högst 840 euro dvs 100 % av 420 + 420. Anmärkningsfältet på Sammandragssidan korrigerats så att det fungerar.. Korrigeringar av teksten (finska).","2008-02-07"]
[null,"Korrigerat beräkningen av umgängesavdrag","2008-02-08"]
[null,"Korrigerat beräkningen av barnens andel av boendekostnaderna. Publicerat svensk version","2008-04-02"]
[null,"Korrigerat beräkningen barnbidragsförhöjningen i de fall när föräldrarna inte är ensamförsörjare utan bor i ett nytt förhållande.","2008-05-15"]
[null,"Korrigerat beräkningen av barnbidragsförhöjningen gällande underhållsskyldige. Korrigering av föregående korrigering","2008-09-02"]
[null,"Korrigering av föregående korrigering. Felet fanns även i Sammandraget.","3008-09-03"]
[null,"Utvecklat utseendet och lagt in barnbidragsbelopp som gäller från och med 1.1.2009. Korrigerat den svenska versionen till den del gäller delning av kostnader.","2008-12-04"]
[null,"OBS! Satt till ett fält för det underhåll den underhållskyldiges egna barn erhåller.","2009-03-16"]
[null,"Korrigerat så att det underhåll boendeförälderns övriga barn erhåller beaktas i sammandraget.","2009-06-01"]
[null,"Korrigerat med de nya grunduppgifter som träder i kraft 1.1.2011 (allmänna kostnader och avdrag för umgänge)","2010-12-27"]
[null,"Ändrat beloppet för barnbidragets förhöjning","2011-12-22"]
[null,"Barnbidragens nya belopp 1.1.2012","2012-01-16"]
[null,"Korrigerat med de nya grunduppgifter som trädde i kraft 1.1.2012 (allmänna kostnader och avdrag för umgänge)","2012-02-20"]
[null,"Korrigerat med de nya grunduppgifter som trädde i kraft 1.1.2013 (allmänna kostnader och avdrag för umgänge)","2013-01-16"]
[null,"Korrigerat med de nya grunduppgifter som trädde i kraft 1.1.2014 (allmänna kostnader och avdrag för umgänge)","2014-01-14"]
[null,"Korrigerat med de nya grunduppgifter som trädde i kraft 1.1.2015 (allmänna kostnader och avdrag för umgänge samt barnbidragsförändringarna)","2015-01-05"]
[null,"Korrigerat fel vid beräkning av barnbidrag då sex eller flera får barnbidrag men mindre antal söker underhåll","2015-01-28"]
[null,"Korrigerat med de nya grunduppgifter som trädde i kraft 1.1.2016 (allmänna kostnader)","2016-02-09"]
[null,"Korrigerat med de nya grunduppgifter som trädde i kraft 1.1.2017 (allmänna kostnader, barnbidrag)","2017-01-11"]
[null,"Korrigerat med de nya grunduppgifter som trädde i kraft 1.1.2018 (allmänna kostnader, barnbidrag)","2018-01-11"]
[null,"Lagt till beräkning av umgängesavdraget när föräldrarnas underhållsförmåga inte täcker barnens behov",43199]
[null,"Korrigerat med de nya grunduppgifter som trädde i kraft 1.1.2019 (allmänna kostnader)","2018-01-23"]